Workbook

Sheet Köpeny férfi
A1: Modell: | C1: Fehér köpeny férfi
A2: Készmérettáblázat
B3: XS | C3: S | D3: M | E3: L | F3: XL | G3: XXL | H3: 3XL | I3: 4XL
A4: hossza hátközépen | B4: =C4-0.8 -> 95.5 | C4: =D4-0.8 -> 96.3 | D4: =E4-0.8 -> 97.1 | E4: 97.9 | F4: =E4+0.8 -> 98.7 | G4: =F4+1.2 -> 99.9 | H4: =G4+1.2 -> 101.1 | I4: =H4+1.2 -> 102.3
A5: mellkerület | B5: =C5-8 -> 101 | C5: 109 | D5: 117 | E5: 125 | F5: =E5+8 -> 133 | G5: =F5+12 -> 145 | H5: 157 | I5: 169
A6: alja kerület | B6: 101 | C6: 109 | D6: 117 | E6: 125 | F6: =E6+8 -> 133 | G6: 145 | H6: 157 | I6: 169
A7: vállszélesség | B7: =C7-0.6 -> 14.8 | C7: =D7-0.6 -> 15.4 | D7: =E7-0.6 -> 16 | E7: 16.6 | F7: =E7+0.5 -> 17.1 | G7: =F7+1.1 -> 18.2 | H7: =G7+1 -> 19.2 | I7: =H7+1 -> 20.2
A8: ujja hossza | B8: =C8-0.8 -> 61.7 | C8: =D8-0.8 -> 62.5 | D8: =E8-0.8 -> 63.3 | E8: 64.1 | F8: =E8+0.8 -> 64.9 | G8: =F8+1.2 -> 66.1 | H8: =G8+1.2 -> 67.3 | I8: =H8+1.2 -> 68.5
A9: ujja felkarkerület | B9: =C9-1.8 -> 46.8 | C9: =D9-1.8 -> 48.6 | D9: =E9-1.8 -> 50.4 | E9: 52.2 | F9: =E9+1.8 -> 54 | G9: =F9+1.8 -> 55.8 | H9: =G9+1.9 -> 57.7 | I9: =H9+1.8 -> 59.5
A10: ujja alja kerület | B10: =C10-1.2 -> 29.6 | C10: =D10-1.2 -> 30.8 | D10: =E10-1.2 -> 32 | E10: 33.2 | F10: =E10+1.2 -> 34.4 | G10: =F10+1.8 -> 36.2 | H10: =G10+1.8 -> 38 | I10: =H10+1.8 -> 39.8
A11: felső zseb szélessége | B11: =C11 -> 13 | C11: 13 | D11: =E11-0.6 -> 13 | E11: 13.6 | F11: =E11 -> 13.6 | G11: =F11+0.6 -> 14.2 | H11: =G11 -> 14.2 | I11: 14.2
A12: felső zseb hossza | B12: 13.5 | C12: 13.5 | D12: =E12-0.6 -> 13.5 | E12: 14.1 | F12: =E12 -> 14.1 | G12: =F12+0.6 -> 14.7 | H12: 14.7 | I12: 14.7
A13: alsó zseb szélessége | B13: 20 | C13: 20 | D13: =E13-0.6 -> 20 | E13: 20.6 | F13: =E13 -> 20.6 | G13: =F13+0.6 -> 21.2 | H13: 21.2 | I13: 21.2
A14: alsó zseb hossza | B14: 20.5 | C14: 20.5 | D14: =E14-0.6 -> 20.5 | E14: 21.1 | F14: =E14 -> 21.1 | G14: =F14+0.6 -> 21.7 | H14: 21.7 | I14: 21.7
A15: Részmérettáblázat
B16: XS | C16: S | D16: M | E16: L | F16: XL | G16: XXL | H16: 3XL | I16: 4XL
A17: gallér szélessége hátközépen | B17: =C17 -> 7.7 | C17: 7.7 | D17: 7.7 | E17: 7.7 | F17: =E17 -> 7.7 | G17: 7.7 | H17: 7.7 | I17: 7.7
A18: felsőzseb behajtás szélessége | B18: 1+3 | C18: 1+3 | D18: 1+3 | E18: 1+3 | F18: 1+3 | G18: 1+3 | H18: 1+3 | I18: 1+3
A19: alsózseb behajtás szélessége | B19: 1+4 | C19: 1+4 | D19: 1+4 | E19: 1+4 | F19: 1+4 | G19: 1+4 | H19: 1+4 | I19: 1+4
A20: alja felhajtás szélessége | B20: 1+2 | C20: 1+2 | D20: 1+2 | E20: 1+2 | F20: 1+2 | G20: 1+2 | H20: 1+2 | I20: 1+2

Sheet Orvosi ing
A1: Modell: | C1: Orvosi ing
A2: Készmérettáblázat
B3: XS | C3: S | D3: M | E3: L | F3: XL | G3: XXL | H3: 3XL | I3: 4XL
A4: hossza hátközépen | B4: =C4-1 -> 75 | C4: =D4-1 -> 76 | D4: =E4-1 -> 77 | E4: 78 | F4: =E4+1 -> 79 | G4: =F4+1.5 -> 80.5 | H4: =G4+1.5 -> 82 | I4: =H4+1.5 -> 83.5
A5: mellkerület | B5: =C5-8 -> 100 | C5: 108 | D5: 116 | E5: 124 | F5: =E5+8 -> 132 | G5: =F5+12 -> 144 | H5: 156 | I5: 168
A6: alja kerület | B6: 100 | C6: 108 | D6: 116 | E6: 124 | F6: =E6+8 -> 132 | G6: 144 | H6: 156 | I6: 168
A7: vállszélesség | B7: =C7-0.7 -> 15.3 | C7: 16 | D7: 16.7 | E7: 17.4 | F7: =E7+0.7 -> 18.1 | G7: =F7+1 -> 19.1 | H7: 20.1 | I7: 21.1
A8: ujja hossza | B8: 22.7 | C8: 23.4 | D8: 24.1 | E8: 24.8 | F8: =E8+0.7 -> 25.5 | G8: 26.5 | H8: 27.5 | I8: 28.5
A9: ujja alja kerület | B9: =C9-2.5 -> 39.3 | C9: =D9-2.5 -> 41.8 | D9: =E9-2.5 -> 44.3 | E9: 46.8 | F9: =E9+3 -> 49.8 | G9: =F9+3.5 -> 53.3 | H9: =G9+3.7 -> 57 | I9: =H9+3.7 -> 60.7
A10: felső zseb szélessége | B10: =C10-1 -> 13 | C10: =D10 -> 14 | D10: =E10 -> 14 | E10: 14 | F10: =E10 -> 14 | G10: =F10 -> 14 | H10: =G10+1 -> 15 | I10: =H10 -> 15
A11: felső zseb hossza | B11: =C11-1 -> 14 | C11: =D11 -> 15 | D11: =E11 -> 15 | E11: 15 | F11: =E11 -> 15 | G11: =F11 -> 15 | H11: =G11+1 -> 16 | I11: =H11 -> 16
A12: Részmérettáblázat
B13: XS | C13: S | D13: M | E13: L | F13: XL | G13: XXL | H13: 3XL | I13: 4XL
A14: jobb elejeszél behajtás szélessége, apparáttal, (gomb helye) | B14: =C14 -> 2,8+3 | C14: 2,8+3 | D14: 2,8+3 | E14: 2,8+3 | F14: =E14 -> 2,8+3 | G14: 2,8+3 | H14: 2,8+3 | I14: 2,8+3
A15: bal elejeszél behajtás szélessége, apparáttal, (gomblyuk helye) | B15: 2,8+3 | C15: 2,8+3 | D15: 2,8+3 | E15: 2,8+3 | F15: 2,8+3 | G15: 2,8+3 | H15: 2,8+3 | I15: 2,8+3
A16: gallér szélessége hátközépen | B16: 7 | C16: 7 | D16: 7 | E16: 7 | F16: 7 | G16: 7 | H16: 7 | I16: 7
A17: zsebszél behajtás szélessége | B17: 1+2,5 | C17: 1+2,5 | D17: 1+2,5 | E17: 1+2,5 | F17: 1+2,5 | G17: 1+2,5 | H17: 1+2,5 | I17: 1+2,5
A18: ujja alja felhajtás szélessége | B18: 1+2,5 | C18: 1+2,5 | D18: 1+2,5 | E18: 1+2,5 | F18: =E18 -> 1+2,5 | G18: 1+2,5 | H18: 1+2,5 | I18: 1+2,5
A19: alja felhajtás szélessége | B19: 0,8+0,8 | C19: 0,8+0,8 | D19: 0,8+0,8 | E19: 0,8+0,8 | F19: 0,8+0,8 | G19: 0,8+0,8 | H19: 0,8+0,8 | I19: 0,8+0,8

Sheet Orvosi nadrág
A1: Modell: | C1: Orvosi nadrág, férfi
A2: Készmérettáblázat
B3: XS | C3: S | D3: M | E3: L | F3: XL | G3: XXL | H3: 3XL | I3: 4XL
A4: derék kerület | B4: =C4-8 -> 73 | C4: =D4-8 -> 81 | D4: =E4-8 -> 89 | E4: 97 | F4: =E4+9 -> 106 | G4: =F4+15 -> 121 | H4: =G4+15 -> 136 | I4: =H4+15 -> 151
A5: csípő kerület, hasíték alatt mérve | B5: =C5-7.5 -> 95 | C5: =D5-7.5 -> 102.5 | D5: =E5-8 -> 110 | E5: 118 | F5: =E5+8 -> 126 | G5: =F5+12 -> 138 | H5: =G5+12 -> 150 | I5: =H5+12 -> 162
A6: alja kerület | B6: =C6-2.4 -> 40.8 | C6: =D6-2.4 -> 43.2 | D6: =E6-2.4 -> 45.6 | E6: 48 | F6: =E6+2.4 -> 50.4 | G6: =F6+3.6 -> 54 | H6: =G6+3.6 -> 57.6 | I6: =H6+3.6 -> 61.2
A7: külső hossz | B7: =C7-1 -> 102.8 | C7: =D7-1 -> 103.8 | D7: =E7-1 -> 104.8 | E7: 105.8 | F7: =E7+1.1 -> 106.9 | G7: =F7+1.5 -> 108.4 | H7: =G7+1.5 -> 109.9 | I7: =H7+1.5 -> 111.4
A8: belső hossz | B8: =C8-0.1 -> 81.2 | C8: =D8-0.1 -> 81.3 | D8: =E8-0.1 -> 81.4 | E8: 81.5 | F8: =E8+0.1 -> 81.6 | G8: =F8+0.1 -> 81.7 | H8: =G8+0.1 -> 81.8 | I8: =H8+0.1 -> 81.9
A9: eleje ülep hossz | B9: =C9-1.2 -> 21.7 | C9: =D9-1.2 -> 22.9 | D9: =E9-1.2 -> 24.1 | E9: 25.3 | F9: =E9+1.2 -> 26.5 | G9: =F9+1.8 -> 28.3 | H9: =G9+1.8 -> 30.1 | I9: =H9+1.8 -> 31.9
A10: háta ülep hossz | B10: =C10-1.8 -> 35.3 | C10: =D10-1.8 -> 37.1 | D10: =E10-1.8 -> 38.9 | E10: 40.7 | F10: =E10+1.7 -> 42.4 | G10: =F10+2.4 -> 44.8 | H10: =G10+2.4 -> 47.2 | I10: =H10+2.4 -> 49.6
A11: zsebnyílás hossza | B11: =C11 -> 17.8 | C11: =D11-0.6 -> 17.8 | D11: =E11 -> 18.4 | E11: 18.4 | F11: =E11 -> 18.4 | G11: =F11+0.6 -> 19 | H11: =G11 -> 19 | I11: =H11+0.3 -> 19.3
A12: Részmérettáblázat
B13: XS | C13: S | D13: M | E13: L | F13: XL | G13: XXL | H13: 3XL | I13: 4XL
A14: derékpánt kész szélessége | B14: =C14 -> 4.2 | C14: 4.2 | D14: 4.2 | E14: 4.2 | F14: =E14 -> 4.2 | G14: 4.2 | H14: 4.2 | I14: 4.2
A15: övbújtató kész szélessége | B15: 0.9 | C15: 0.9 | D15: 0.9 | E15: 0.9 | F15: 0.9 | G15: 0.9 | H15: 0.9 | I15: 0.9
A16: övbújtató darabolási hossza | B16: 8 | C16: 8 | D16: 8 | E16: 8 | F16: 8 | G16: 8 | H16: 8 | I16: 8
A17: bőség szabályzó kész szélessége | B17: 3 | C17: 3 | D17: 3 | E17: 3 | F17: 3 | G17: 3 | H17: 3 | I17: 3
A19: A bőségszabályzó a derékpánton középen elhelyezve, felvarrása az oldalvarrás folytatásába essen. Övbújtatók helye: -eleje: zseb közepe, zsebzsák közepe - oldalvarrástól 1 cm-re - háta formázó és háta ülepvarrás között, középen

Sheet Pizsama kabát f
A1: Modell: | C1: Pizsama kabát, felnőtt
A2: Készmérettáblázat
B3: XS | C3: S | D3: M | E3: L | F3: XL | G3: XXL | H3: 3XL | I3: 4XL
A4: hossza hátközépen | B4: =C4-1 -> 75.8 | C4: =D4-1 -> 76.8 | D4: =E4-1 -> 77.8 | E4: 78.8 | F4: =E4+1 -> 79.8 | G4: =F4+1.5 -> 81.3 | H4: =G4+1.5 -> 82.8 | I4: =H4+1.5 -> 84.3
A5: mellkerület | B5: =C5-8 -> 101 | C5: 109 | D5: 117 | E5: 125 | F5: =E5+8 -> 133 | G5: =F5+12 -> 145 | H5: 157 | I5: 169
A6: alja kerület | B6: 101 | C6: 109 | D6: 117 | E6: 125 | F6: =E6+8 -> 133 | G6: 145 | H6: 157 | I6: 169
A7: vállszélesség | B7: =C7-0.7 -> 15.5 | C7: 16.2 | D7: 16.9 | E7: 17.6 | F7: =E7+0.7 -> 18.3 | G7: =F7+1 -> 19.3 | H7: 20.3 | I7: 21.3
A8: ujja hossza | B8: 61.9 | C8: 62.6 | D8: 63.3 | E8: 64 | F8: =E8+0.7 -> 64.7 | G8: 65.7 | H8: 66.7 | I8: 67.7
A9: ujja felkarkerület | B9: =C9-2.4 -> 45 | C9: =D9-2.4 -> 47.4 | D9: =E9-2.4 -> 49.8 | E9: 52.2 | F9: =E9+2.4 -> 54.6 | G9: =F9+3.7 -> 58.3 | H9: =G9+3.6 -> 61.9 | I9: =H9+3.7 -> 65.6
A10: ujja alja kerület | B10: =C10-1.2 -> 29.6 | C10: =D10-1.2 -> 30.8 | D10: =E10-1.2 -> 32 | E10: 33.2 | F10: =E10+1.2 -> 34.4 | G10: =F10+1.8 -> 36.2 | H10: =G10+1.8 -> 38 | I10: =H10+1.8 -> 39.8
A11: felső zseb szélessége | B11: =C11 -> 12.5 | C11: =D11 -> 12.5 | D11: =E11-0.5 -> 12.5 | E11: 13 | F11: =E11 -> 13 | G11: =F11+0.5 -> 13.5 | H11: =G11 -> 13.5 | I11: 13.5
A12: felső zseb hossza | B12: =C12 -> 13 | C12: =D12 -> 13 | D12: =E12-0.6 -> 13 | E12: 13.6 | F12: =E12 -> 13.6 | G12: =F12+0.6 -> 14.2 | H12: 14.2 | I12: 14.2
A13: alsó zseb szélessége | B13: =$E$13-0.5 -> 19 | C13: =$E$13-0.5 -> 19 | D13: =$E$13-0.5 -> 19 | E13: 19.5 | F13: =E13 -> 19.5 | G13: =F13+0.5 -> 20 | H13: 20 | I13: 20
A14: alsó zseb hossza | B14: =C14 -> 19.5 | C14: =D14 -> 19.5 | D14: =E14-0.5 -> 19.5 | E14: 20 | F14: =E14 -> 20 | G14: =F14+0.5 -> 20.5 | H14: 20.5 | I14: 20.5
A15: Részmérettáblázat
B16: XS | C16: S | D16: M | E16: L | F16: XL | G16: XXL | H16: 3XL | I16: 4XL
A17: jobb elejeszél behajtás szélessége, apparáttal, (gomb helye) | B17: =C17 -> 1+4 | C17: 1+4 | D17: 1+4 | E17: 1+4 | F17: =E17 -> 1+4 | G17: 1+4 | H17: 1+4 | I17: 1+4
A18: bal elejeszél behajtás szélessége, apparáttal, (gomblyuk helye) | B18: 1+4,5 | C18: 1+4,5 | D18: 1+4,5 | E18: 1+4,5 | F18: 1+4,5 | G18: 1+4,5 | H18: 1+4,5 | I18: 1+4,5
A19: gallér szélessége hátközépen | B19: 7 | C19: 7 | D19: 7 | E19: 7 | F19: =E19 -> 7 | G19: =F19 -> 7 | H19: =G19 -> 7 | I19: =H19 -> 7
A20: zsebszél behajtás szélessége | B20: 1+2,5 | C20: 1+2,5 | D20: 1+2,5 | E20: 1+2,5 | F20: 1+2,5 | G20: 1+2,5 | H20: 1+2,5 | I20: 1+2,5
A21: ujja alja felhajtás szélessége | B21: 1+1,5 | C21: 1+1,5 | D21: 1+1,5 | E21: 1+1,5 | F21: =E21 -> 1+1,5 | G21: 1+1,5 | H21: 1+1,5 | I21: 1+1,5
A22: alja felhajtás szélessége | B22: 1+1,5 | C22: 1+1,5 | D22: 1+1,5 | E22: 1+1,5 | F22: 1+1,5 | G22: 1+1,5 | H22: 1+1,5 | I22: 1+1,5

Sheet Pizsama nadrág f
A1: Modell: | C1: Pizsama nadrág, felnőtt
A2: Készmérettáblázat
B3: XS | C3: S | D3: M | E3: L | F3: XL | G3: XXL | H3: 3XL | I3: 4XL
A4: derék kerület, (gumiszalag mérete) | B4: 60 | C4: 63 | D4: 68 | E4: 72 | F4: 76 | G4: 82 | H4: 87 | I4: 92
A5: csípő kerület | B5: =C5-7.5 -> 100.2 | C5: =D5-7.5 -> 107.7 | D5: =E5-7.5 -> 115.2 | E5: 122.7 | F5: =E5+8 -> 130.7 | G5: =F5+12.5 -> 143.2 | H5: =G5+12.5 -> 155.7 | I5: =H5+12.5 -> 168.2
A6: alja kerület | B6: =C6-2.4 -> 40.8 | C6: =D6-2.4 -> 43.2 | D6: =E6-2.4 -> 45.6 | E6: 48 | F6: =E6+2.4 -> 50.4 | G6: =F6+3.6 -> 54 | H6: =G6+3.6 -> 57.6 | I6: =H6+3.6 -> 61.2
A7: külső hossz | B7: =C7-1 -> 106.2 | C7: =D7-1 -> 107.2 | D7: =E7-1 -> 108.2 | E7: 109.2 | F7: =E7+1 -> 110.2 | G7: =F7+1.6 -> 111.8 | H7: =G7+1.6 -> 113.4 | I7: =H7+1.6 -> 115
A8: belső hossz | B8: 81 | C8: 81 | D8: 81 | E8: 81 | F8: 81 | G8: =F8+0.1 -> 81.1 | H8: =G8+0.1 -> 81.2 | I8: =H8+0.1 -> 81.3
A9: eleje ülep hossz | B9: =C9-1.2 -> 25.8 | C9: =D9-1.2 -> 27 | D9: =E9-1.2 -> 28.2 | E9: 29.4 | F9: =E9+1.2 -> 30.6 | G9: =F9+1.8 -> 32.4 | H9: =G9+1.8 -> 34.2 | I9: =H9+1.8 -> 36
A10: háta ülep hossz | B10: =C10-1.8 -> 39.5 | C10: =D10-1.8 -> 41.3 | D10: =E10-1.8 -> 43.1 | E10: 44.9 | F10: =E10+1.8 -> 46.7 | G10: =F10+2.3 -> 49 | H10: =G10+2.5 -> 51.5 | I10: =H10+2.5 -> 54
A11: Részmérettáblázat
B12: XS | C12: S | D12: M | E12: L | F12: XL | G12: XXL | H12: 3XL | I12: 4XL
A13: alja felhajtás szélessége | B13: 1+1,5 | C13: 1+1,5 | D13: 1+1,5 | E13: 1+1,5 | F13: 1+1,5 | G13: 1+1,5 | H13: 1+1,5 | I13: 1+1,5

Sheet Beteging
A1: Modell: | C1: Beteging
A2: Készmérettáblázat
B3: XS | C3: S | D3: M | E3: L | F3: XL | G3: XXL | H3: 3XL | I3: 4XL
A4: hossza hátközépen | B4: =C4-0.8 -> 101.6 | C4: =D4-0.8 -> 102.4 | D4: =E4-0.8 -> 103.2 | E4: 104 | F4: =E4+0.8 -> 104.8 | G4: =F4+1.3 -> 106.1 | H4: =G4+1.2 -> 107.3 | I4: =H4+1.3 -> 108.6
A5: mellkerület | B5: =C5-8 -> 103.1 | C5: 111.1 | D5: 119.1 | E5: 127.1 | F5: =E5+8 -> 135.1 | G5: =F5+12 -> 147.1 | H5: 159.1 | I5: 171.1
A6: alja kerület | B6: 103.1 | C6: 111.1 | D6: 119.1 | E6: 127.1 | F6: =E6+8 -> 135.1 | G6: 147.1 | H6: 159.1 | I6: 171.1
A7: vállszélesség | B7: =C7-0.6 -> 14.1 | C7: =D7-0.6 -> 14.7 | D7: =E7-0.6 -> 15.3 | E7: 15.9 | F7: =E7+0.6 -> 16.5 | G7: =F7+0.9 -> 17.4 | H7: =G7+0.9 -> 18.3 | I7: =H7+0.9 -> 19.2
A8: ujja hossza | B8: =C8-0.8 -> 18.2 | C8: =D8-0.8 -> 19 | D8: =E8-0.8 -> 19.8 | E8: 20.6 | F8: =E8+0.8 -> 21.4 | G8: =F8+1.2 -> 22.6 | H8: =G8+1.2 -> 23.8 | I8: =H8+1.2 -> 25
A9: ujja felkar kerület | B9: =C9-2.4 -> 39.3 | C9: 41.7 | D9: 44.1 | E9: 46.5 | F9: =E9+2.4 -> 48.9 | G9: =F9+3.6 -> 52.5 | H9: =G9+3.6 -> 56.1 | I9: =H9+3.6 -> 59.7
A10: ujja alja kerület | B10: 36.3 | C10: 38.7 | D10: 41.1 | E10: 43.5 | F10: =E10+2.4 -> 45.9 | G10: =F10+2.4 -> 48.3 | H10: =G10+2.4 -> 50.7 | I10: =H10+2.4 -> 53.1
A11: Részmérettáblázat
B12: XS | C12: S | D12: M | E12: L | F12: XL | G12: XXL | H12: 3XL | I12: 4XL
A13: jobb elejeszél behajtás szélessége, apparáttal, (gomb helye) | B13: =C13 -> 1+4 | C13: 1+4 | D13: 1+4 | E13: 1+4 | F13: =E13 -> 1+4 | G13: 1+4 | H13: 1+4 | I13: 1+4
A14: bal elejeszél behajtás szélessége, apparáttal, (gomblyuk helye) | B14: 1+4 | C14: 1+4 | D14: 1+4 | E14: 1+4 | F14: 1+4 | G14: 1+4 | H14: 1+4 | I14: 1+4
A15: ujja alja felhajtás szélessége | B15: 1+2,5 | C15: 1+2,5 | D15: 1+2,5 | E15: 1+2,5 | F15: 1+2,5 | G15: 1+2,5 | H15: 1+2,5 | I15: 1+2,5
A16: alja felhajtás szélessége | B16: 1+2,5 | C16: 1+2,5 | D16: 1+2,5 | E16: 1+2,5 | F16: 1+2,5 | G16: 1+2,5 | H16: 1+2,5 | I16: 1+2,5
A17: rollni kész szélessége | B17: 1 | C17: 1 | D17: 1 | E17: 1 | F17: =E17 -> 1 | G17: 1 | H17: 1 | I17: 1

Sheet Műtős nadrág
A1: Modell: | C1: Műtős nadrág
A2: Készmérettáblázat
B3: XS | C3: S | D3: M | E3: L | F3: XL | G3: XXL | H3: 3XL | I3: 4XL
A4: derék kerület, (gumiszalag mérete) | B4: 60 | C4: 63 | D4: 68 | E4: 72 | F4: 76 | G4: 82 | H4: 87 | I4: 92
A5: csípő kerület | B5: 100 | C5: =B5+7.5 -> 107.5 | D5: =C5+7.5 -> 115 | E5: =D5+7.5 -> 122.5 | F5: =E5+8 -> 130.5 | G5: =F5+13 -> 143.5 | H5: =G5+12.5 -> 156 | I5: =H5+12.5 -> 168.5
A6: alja kerület | B6: 40.8 | C6: =B6+2.4 -> 43.2 | D6: =C6+2.4 -> 45.6 | E6: =D6+2.4 -> 48 | F6: =E6+2.4 -> 50.4 | G6: =F6+3.6 -> 54 | H6: =G6+3.6 -> 57.6 | I6: =H6+3.6 -> 61.2
A7: külső hossz | B7: 106.2 | C7: =B7+1 -> 107.2 | D7: =C7+1 -> 108.2 | E7: =D7+1 -> 109.2 | F7: =E7+1 -> 110.2 | G7: =F7+1.8 -> 112 | H7: =G7+1.5 -> 113.5 | I7: =H7+1.5 -> 115
A8: belső hossz | B8: 81.3 | C8: =B8+0.1 -> 81.4 | D8: =C8+0.1 -> 81.5 | E8: 81.6 | F8: 81.7 | G8: 81.8 | H8: =G8+0.1 -> 81.9 | I8: 82
A9: eleje ülep hossz | B9: 25.8 | C9: 27 | D9: 28.2 | E9: 29.4 | F9: 30.6 | G9: 32.4 | H9: 34.2 | I9: 35.9
A10: háta ülep hossz | B10: 39.5 | C10: 41.3 | D10: 43.1 | E10: 44.9 | F10: 46.6 | G10: 49 | H10: 51.5 | I10: 53.9
A11: zseb szélessége | B11: 13 | C11: 13.5 | D11: 14 | E11: 14 | F11: 14.5 | G11: 15 | H11: 15.5 | I11: 16
A12: zseb hossza | B12: 14.5 | C12: 15 | D12: 15.5 | E12: 15.5 | F12: 16 | G12: 16.5 | H12: 17 | I12: 17.5
A13: Részmérettáblázat
B14: XS | C14: S | D14: M | E14: L | F14: XL | G14: XXL | H14: 3XL | I14: 4XL
A15: alja felhajtás szélessége | B15: 1+1,5 | C15: 1+1,5 | D15: 1+1,5 | E15: 1+1,5 | F15: 1+1,5 | G15: 1+1,5 | H15: 1+1,5 | I15: 1+1,5
A16: gumiház szélessége | B16: 2.5 | C16: 2.5 | D16: 2.5 | E16: 2.5 | F16: 2.5 | G16: 2.5 | H16: 2.5 | I16: 2.5

Sheet Műtős ing V-ny
A1: Modell: | C1: Műtős ing, V-nyakú, 4 zsebes, slicces
A2: Készmérettáblázat
B3: XS | C3: S | D3: M | E3: L | F3: XL | G3: XXL | H3: 3XL | I3: 4XL
A4: hossza hátközépen | B4: 72.5 | C4: =B4+1 -> 73.5 | D4: =C4+1 -> 74.5 | E4: =D4+1 -> 75.5 | F4: =E4+1 -> 76.5 | G4: =F4+1.5 -> 78 | H4: =G4+1.5 -> 79.5 | I4: =H4+1.5 -> 81
A5: mellkerület | B5: 100 | C5: =B5+8 -> 108 | D5: 116 | E5: 124 | F5: 132 | G5: =F5+12 -> 144 | H5: 156 | I5: 168
A6: alja kerület | B6: 103.8 | C6: 111.8 | D6: 119.8 | E6: 127.8 | F6: 135.8 | G6: 147.8 | H6: 159.8 | I6: 171.8
A7: nyakkör kerület | B7: 56.4 | C7: 57.8 | D7: 59.2 | E7: 60.6 | F7: 62 | G7: 64.1 | H7: 66.3 | I7: 68.4
A8: vállszélesség | B8: 14.6 | C8: =B8+0.7 -> 15.3 | D8: =C8+0.7 -> 16 | E8: =D8+0.7 -> 16.7 | F8: =E8+0.7 -> 17.4 | G8: =F8+1 -> 18.4 | H8: =G8+1.1 -> 19.5 | I8: =H8+1.1 -> 20.6
A9: ujja hossza | B9: 22.6 | C9: =B9+0.6 -> 23.2 | D9: =C9+0.6 -> 23.8 | E9: =D9+0.6 -> 24.4 | F9: =E9+0.8 -> 25.2 | G9: =F9+1.2 -> 26.4 | H9: =G9+1.2 -> 27.6 | I9: =H9+1.2 -> 28.8
A10: ujja alja kerület | B10: 40.8 | C10: =B10+2.15 -> 42.95 | D10: =C10+2.15 -> 45.1 | E10: =D10+2.15 -> 47.25 | F10: =E10+2.15 -> 49.4 | G10: =F10+3.45 -> 52.85 | H10: =G10+3.45 -> 56.3 | I10: =H10+3.45 -> 59.75
A11: felső zseb szélessége | B11: 13 | C11: 13 | D11: 13.5 | E11: 14 | F11: 14 | G11: 14.5 | H11: 14.5 | I11: 15
A12: felső zseb hossza | B12: 15 | C12: 15 | D12: 15.5 | E12: 16 | F12: 16 | G12: 16.5 | H12: 16.5 | I12: 17
A13: alsó zseb szélessége | B13: 17 | C13: 17 | D13: 17.5 | E13: 18 | F13: 18 | G13: 18.5 | H13: 18.5 | I13: 19
A14: alsó zseb hossza | B14: 19 | C14: 19 | D14: 19.5 | E14: 20 | F14: 20 | G14: 20.5 | H14: 20.5 | I14: 21
A15: Részmérettáblázat
B16: XS | C16: S | D16: M | E16: L | F16: XL | G16: XXL | H16: 3XL | I16: 4XL
A17: zsebszél behajtás szélessége | B17: 1+2 | C17: 1+2 | D17: 1+2 | E17: 1+2 | F17: 1+2 | G17: 1+2 | H17: 1+2 | I17: 1+2
A18: ujja alja felhajtás szélessége | B18: 1+1,5 | C18: 1+1,5 | D18: 1+1,5 | E18: 1+1,5 | F18: 1+1,5 | G18: 1+1,5 | H18: 1+1,5 | I18: 1+1,5
A19: alja felhajtás szélessége | B19: 1+1,5 | C19: 1+1,5 | D19: 1+1,5 | E19: 1+1,5 | F19: 1+1,5 | G19: 1+1,5 | H19: 1+1,5 | I19: 1+1,5
A20: slicc hossza | B20: 15 | C20: 15 | D20: 15 | E20: 15 | F20: 15 | G20: 15 | H20: 15 | I20: 15
A21: pánt kész szélessége | B21: 4 | C21: 4 | D21: 4 | E21: 4 | F21: 4 | G21: 4 | H21: 4 | I21: 4

Sheet Műtős ing O-ny
A1: Modell: | C1: Műtős ing, O-nyakú, 3 zsebes
A2: Készmérettáblázat
B3: XS | C3: S | D3: M | E3: L | F3: XL | G3: XXL | H3: 3XL | I3: 4XL
A4: hossza hátközépen | B4: 72.5 | C4: =B4+1 -> 73.5 | D4: =C4+1 -> 74.5 | E4: =D4+1 -> 75.5 | F4: =E4+1 -> 76.5 | G4: =F4+1.5 -> 78 | H4: =G4+1.5 -> 79.5 | I4: =H4+1.5 -> 81
A5: mellkerület | B5: 100 | C5: =B5+8 -> 108 | D5: 116 | E5: 124 | F5: 132 | G5: =F5+12 -> 144 | H5: 156 | I5: 168
A6: alja kerület | B6: 103.8 | C6: 111.8 | D6: 119.8 | E6: 127.8 | F6: 135.8 | G6: 147.8 | H6: 159.8 | I6: 171.8
A7: nyakkör kerület | B7: 56.4 | C7: 57.8 | D7: 59.2 | E7: 60.6 | F7: 62 | G7: 64.1 | H7: 66.3 | I7: 68.4
A8: vállszélesség | B8: 14.6 | C8: =B8+0.7 -> 15.3 | D8: =C8+0.7 -> 16 | E8: =D8+0.7 -> 16.7 | F8: =E8+0.7 -> 17.4 | G8: =F8+1 -> 18.4 | H8: =G8+1.1 -> 19.5 | I8: =H8+1.1 -> 20.6
A9: ujja hossza | B9: 22.6 | C9: =B9+0.6 -> 23.2 | D9: =C9+0.6 -> 23.8 | E9: =D9+0.6 -> 24.4 | F9: =E9+0.8 -> 25.2 | G9: =F9+1.2 -> 26.4 | H9: =G9+1.2 -> 27.6 | I9: =H9+1.2 -> 28.8
A10: ujja alja kerület | B10: 40.8 | C10: =B10+2.15 -> 42.95 | D10: =C10+2.15 -> 45.1 | E10: =D10+2.15 -> 47.25 | F10: =E10+2.15 -> 49.4 | G10: =F10+3.45 -> 52.85 | H10: =G10+3.45 -> 56.3 | I10: =H10+3.45 -> 59.75
A11: felső zseb szélessége | B11: 13 | C11: 13 | D11: 13.5 | E11: 14 | F11: 14 | G11: 14.5 | H11: 14.5 | I11: 15
A12: felső zseb hossza | B12: 15 | C12: 15 | D12: 15.5 | E12: 16 | F12: 16 | G12: 16.5 | H12: 16.5 | I12: 17
A13: alsó zseb szélessége | B13: 17 | C13: 17 | D13: 17.5 | E13: 18 | F13: 18 | G13: 18.5 | H13: 18.5 | I13: 19
A14: alsó zseb hossza | B14: 19 | C14: 19 | D14: 19.5 | E14: 20 | F14: 20 | G14: 20.5 | H14: 20.5 | I14: 21
A15: Részmérettáblázat
B16: XS | C16: S | D16: M | E16: L | F16: XL | G16: XXL | H16: 3XL | I16: 4XL
A17: zsebszél behajtás szélessége | B17: 1+2 | C17: 1+2 | D17: 1+2 | E17: 1+2 | F17: 1+2 | G17: 1+2 | H17: 1+2 | I17: 1+2
A18: ujja alja felhajtás szélessége | B18: 1+1,5 | C18: 1+1,5 | D18: 1+1,5 | E18: 1+1,5 | F18: 1+1,5 | G18: 1+1,5 | H18: 1+1,5 | I18: 1+1,5
A19: alja felhajtás szélessége | B19: 1+1,5 | C19: 1+1,5 | D19: 1+1,5 | E19: 1+1,5 | F19: 1+1,5 | G19: 1+1,5 | H19: 1+1,5 | I19: 1+1,5
A20: slicc hossza | B20: 15 | C20: 15 | D20: 15 | E20: 15 | F20: 15 | G20: 15 | H20: 15 | I20: 15
A21: rollni kész szélessége | B21: 1 | C21: 1 | D21: 1 | E21: 1 | F21: 1 | G21: 1 | H21: 1 | I21: 1

Sheet Műtős köpeny
A1: Modell: | C1: Műtős köpeny
A2: Készmérettáblázat
B3: XS | C3: S | D3: M | E3: L | F3: XL | G3: XXL | H3: 3XL | I3: 4XL
A4: hossza elejeközépen | B4: 121.7 | C4: =B4-0.2 -> 121.5 | D4: =C4-0.2 -> 121.3 | E4: =D4-0.2 -> 121.1 | F4: =E4-0.2 -> 120.9 | G4: =F4-0.3 -> 120.6 | H4: =G4-0.3 -> 120.3 | I4: =H4-0.3 -> 120
A5: hossza hátközépen | B5: =C5 -> 130 | C5: =D5 -> 130 | D5: =E5 -> 130 | E5: 130 | F5: =E5 -> 130 | G5: =F5 -> 130 | H5: =G5 -> 130 | I5: =H5 -> 130
A6: mellszélesség | B6: 52 | C6: =B6+4 -> 56 | D6: =C6+4 -> 60 | E6: =D6+4 -> 64 | F6: =E6+4 -> 68 | G6: =F6+6 -> 74 | H6: =G6+6 -> 80 | I6: =H6+6 -> 86
A7: alja kerület | B7: 128.4 | C7: =B7+10 -> 138.4 | D7: =C7+10 -> 148.4 | E7: =D7+10 -> 158.4 | F7: =E7+10 -> 168.4 | G7: =F7+15 -> 183.4 | H7: =G7+15 -> 198.4 | I7: =H7+15 -> 213.4
A8: nyakkör kerület | B8: 30.7 | C8: 33.2 | D8: 35.7 | E8: 38.2 | F8: 40.7 | G8: 44.4 | H8: 48.2 | I8: 52
A9: ujja hossza nyaktőponttól | B9: 81.7 | C9: 83.1 | D9: 84.5 | E9: 85.8 | F9: 87.2 | G9: 89.6 | H9: 92 | I9: 94.4
A10: ujja felkarkerület | B10: =C10-2.1 -> 51.6 | C10: =D10-1.9 -> 53.7 | D10: =E10-2 -> 55.6 | E10: 57.6 | F10: =E10+2.2 -> 59.8 | G10: =F10+2 -> 61.8 | H10: =G10+2.2 -> 64 | I10: =H10+2.3 -> 66.3
A11: ujja alja kerület | B11: 27.6 | C11: =B11+1.15 -> 28.75 | D11: =C11+1.2 -> 29.95 | E11: =D11+1.2 -> 31.15 | F11: =E11+1.2 -> 32.35 | G11: =F11+1.8 -> 34.15 | H11: =G11+1.8 -> 35.95 | I11: =H11+1.8 -> 37.75
A12: Részmérettáblázat
B13: XS | C13: S | D13: M | E13: L | F13: XL | G13: XXL | H13: 3XL | I13: 4XL
A14: rövid kötöző, varrásszélességel együtt, darabolási méret | B14: 42 | C14: 42 | D14: 42 | E14: 42 | F14: 42 | G14: 42 | H14: 42 | I14: 42
A15: hosszú kötöző, varrásszélességel együtt, darabolási méret | B15: 80 | C15: 80 | D15: 80 | E15: 80 | F15: 80 | G15: 80 | H15: 80 | I15: 80
A16: 2. hosszú kötöző, varrásszélességel együtt, darabolási méret | B16: 60 | C16: 60 | D16: 60 | E16: 60 | F16: 60 | G16: 60 | H16: 60 | I16: 60
A17: akasztó hossza, darabolási méret | B17: 10 | C17: 10 | D17: 10 | E17: 10 | F17: 10 | G17: 10 | H17: 10 | I17: 10
A18: akasztó kész hossza | B18: 4 | C18: 4 | D18: 4 | E18: 4 | F18: 4 | G18: 4 | H18: 4 | I18: 4
A19: ujja alja felhajtás szélessége | B19: 1+1,5 | C19: 1+1,5 | D19: 1+1,5 | E19: 1+1,5 | F19: 1+1,5 | G19: 1+1,5 | H19: 1+1,5 | I19: 1+1,5
A20: alja felhajtás szélessége | B20: 1+1,5 | C20: 1+1,5 | D20: 1+1,5 | E20: 1+1,5 | F20: 1+1,5 | G20: 1+1,5 | H20: 1+1,5 | I20: 1+1,5
A21: hátközép szélének behajtásszélessége | B21: 1+1 | C21: 1+1 | D21: 1+1 | E21: 1+1 | F21: 1+1 | G21: 1+1 | H21: 1+1 | I21: 1+1

Sheet Köpeny női
A1: Modell: | C1: Fehér köpeny, női
A2: Készmérettáblázat
B3: XS | C3: S | D3: M | E3: L | F3: XL | G3: XXL | H3: 3XL | I3: 4XL
A4: hossza hátközépen | B4: =C4-1 -> 103 | C4: =D4-1 -> 104 | D4: =E4-0.9 -> 105 | E4: 105.9 | F4: =E4+1.5 -> 107.4 | G4: =F4+1.25 -> 108.65 | H4: =G4+1.3 -> 109.95 | I4: =H4+1.25 -> 111.2
A5: mellkerület | B5: =C5-8 -> 97 | C5: 105 | D5: 113 | E5: 121 | F5: =E5+11.5 -> 132.5 | G5: =F5+12 -> 144.5 | H5: =G5+11.5 -> 156 | I5: =H5+11.5 -> 167.5
A6: derék kerület | B6: =C6-8 -> 86.3 | C6: =D6-8 -> 94.3 | D6: 102.3 | E6: 110.3 | F6: =E6+12 -> 122.3 | G6: =F6+12 -> 134.3 | H6: =G6+12 -> 146.3 | I6: =H6+12 -> 158.3
A7: alja kerület | B7: 113.5 | C7: 121.5 | D7: 129.5 | E7: 137.5 | F7: =E7+12 -> 149.5 | G7: =F7+12 -> 161.5 | H7: =G7+12 -> 173.5 | I7: =H7+12 -> 185.5
A8: vállszélesség | B8: =C8-0.7 -> 12.6 | C8: =D8-0.7 -> 13.3 | D8: =E8-0.7 -> 14 | E8: 14.7 | F8: =E8+1.1 -> 15.8 | G8: =F8+1 -> 16.8 | H8: =G8+1.1 -> 17.9 | I8: =H8+1.1 -> 19
A9: ujja hossza | B9: =C9-0.3 -> 59.4 | C9: =D9-0.3 -> 59.7 | D9: =E9-0.3 -> 60 | E9: 60.3 | F9: =E9+0.3 -> 60.6 | G9: =F9+0.4 -> 61 | H9: =G9+0.3 -> 61.3 | I9: =H9+0.3 -> 61.6
A10: ujja felkarkerület | B10: 39 | C10: 41 | D10: 43 | E10: 45 | F10: 48.2 | G10: 51.3 | H10: 54.5 | I10: 57.6
A11: ujja alja kerület | B11: =C11-1.2 -> 27.6 | C11: =D11-1.2 -> 28.8 | D11: =E11-1.1 -> 30 | E11: 31.1 | F11: =E11+1.7 -> 32.8 | G11: =F11+1.9 -> 34.7 | H11: =G11+1.8 -> 36.5 | I11: =H11+1.8 -> 38.3
A12: felső zseb szélessége | B12: =C12-0.5 -> 11 | C12: =D12-0.5 -> 11.5 | D12: =E12 -> 12 | E12: 12 | F12: =E12+0.5 -> 12.5 | G12: =F12 -> 12.5 | H12: =G12+0.5 -> 13 | I12: =H12 -> 13
A13: felső zseb hossza | B13: =C13-0.5 -> 12 | C13: =D13-0.5 -> 12.5 | D13: =E13 -> 13 | E13: 13 | F13: =E13+0.5 -> 13.5 | G13: =F13 -> 13.5 | H13: =G13+0.5 -> 14 | I13: =H13 -> 14
A14: alsó zseb szélessége | B14: =C14-1 -> 14.5 | C14: =D14-1 -> 15.5 | D14: =E14-1 -> 16.5 | E14: 17.5 | F14: =E14+1 -> 18.5 | G14: =F14 -> 18.5 | H14: =G14+1 -> 19.5 | I14: =H14 -> 19.5
A15: alsó zseb hossza | B15: =C15-1.5 -> 16.5 | C15: =D15 -> 18 | D15: =E15-1 -> 18 | E15: 19 | F15: =E15+1 -> 20 | G15: =F15 -> 20 | H15: =G15+1 -> 21 | I15: =H15 -> 21
A16: Részmérettáblázat
B17: XS | C17: S | D17: M | E17: L | F17: XL | G17: XXL | H17: 3XL | I17: 4XL
A18: jobb elejeszél behajtás szélessége, apparáttal, (gomblyuk helye) | B18: =C18 -> 1+4,5 | C18: 1+4,5 | D18: 1+4,5 | E18: 1+4,5 | F18: =E18 -> 1+4,5 | G18: 1+4,5 | H18: 1+4,5 | I18: 1+4,5
A19: bal elejeszél behajtás szélessége, apparáttal, (gomb helye) | B19: 1+4 | C19: 1+4 | D19: 1+4 | E19: 1+4 | F19: 1+4 | G19: 1+4 | H19: 1+4 | I19: 1+4
A20: gallér szélessége hátközépen | B20: 7 | C20: 7 | D20: =E20 -> 7 | E20: 7 | F20: 7 | G20: 7 | H20: 7 | I20: 7
A21: zsebszél behajtás szélessége | B21: 1+2,5 | C21: 1+2,5 | D21: =E21 -> 1+2,5 | E21: 1+2,5 | F21: 1+2,5 | G21: 1+2,5 | H21: 1+2,5 | I21: 1+2,5
A22: ujja alja felhajtás szélessége | B22: 1+1,5 | C22: 1+1,5 | D22: =E22 -> 1+1,5 | E22: 1+1,5 | F22: =E22 -> 1+1,5 | G22: =F22 -> 1+1,5 | H22: 1+1,5 | I22: 1+1,5
A23: alja felhajtás szélessége | B23: 1+1,5 | C23: 1+1,5 | D23: =E23 -> 1+1,5 | E23: 1+1,5 | F23: =E23 -> 1+1,5 | G23: 1+1,5 | H23: 1+1,5 | I23: 1+1,5

Sheet Fehér ruha
A1: Modell: | C1: Fehér ruha, V-nyakú
A2: Készmérettáblázat
B3: XS | C3: S | D3: M | E3: L | F3: XL | G3: XXL | H3: 3XL | I3: 4XL
A4: hossza hátközépen | B4: =C4-1 -> 103 | C4: =D4-1 -> 104 | D4: =E4-1 -> 105 | E4: 106 | F4: =E4+1.25 -> 107.25 | G4: =F4+1.5 -> 108.75 | H4: =G4+1.3 -> 110.05 | I4: =H4+1.25 -> 111.3
A5: mellkerület | B5: =C5-8 -> 91.1 | C5: =D5-8 -> 99.1 | D5: =E5-8 -> 107.1 | E5: 115.1 | F5: =E5+12 -> 127.1 | G5: =F5+12 -> 139.1 | H5: =G5+12 -> 151.1 | I5: =H5+12 -> 163.1
A6: alja kerület | B6: =C6-7.75 -> 112.75 | C6: =D6-7.75 -> 120.5 | D6: =E6-7.75 -> 128.25 | E6: 136 | F6: =E6+11.5 -> 147.5 | G6: =F6+11.75 -> 159.25 | H6: =G6+11.75 -> 171 | I6: =H6+11.75 -> 182.75
A7: vállszélesség | B7: =C7-1.4 -> 27 | C7: =D7-1.4 -> 28.4 | D7: =E7-1.4 -> 29.8 | E7: 31.2 | F7: =E7+2.1 -> 33.3 | G7: =F7+2.1 -> 35.4 | H7: =G7+2.1 -> 37.5 | I7: =H7+2.1 -> 39.6
A8: ujja alja kerület | B8: =C8-1.8 -> 36.3 | C8: =D8-1.8 -> 38.1 | D8: =E8-1.8 -> 39.9 | E8: 41.7 | F8: =E8+2.8 -> 44.5 | G8: =F8+2.8 -> 47.3 | H8: =G8+2.8 -> 50.1 | I8: =H8+2.8 -> 52.9
A9: felső zseb szélessége | B9: =C9-0.5 -> 10.5 | C9: 11 | D9: =E9 -> 11.5 | E9: 11.5 | F9: =E9+0.5 -> 12 | G9: =F9 -> 12 | H9: =G9+0.5 -> 12.5 | I9: =H9 -> 12.5
A10: felső zseb hossza | B10: 12 | C10: 12.5 | D10: =E10 -> 13 | E10: 13 | F10: =E10+0.5 -> 13.5 | G10: =F10 -> 13.5 | H10: =G10+0.5 -> 14 | I10: =H10 -> 14
A11: alsó zseb szélessége | B11: 16 | C11: 16.5 | D11: =E11-0.5 -> 17 | E11: 17.5 | F11: =E11+0.5 -> 18 | G11: =F11 -> 18 | H11: =G11+0.5 -> 18.5 | I11: =H11 -> 18.5
A12: alsó zseb hossza | B12: 19 | C12: 19.5 | D12: =E12-0.5 -> 20 | E12: 20.5 | F12: =E12+0.5 -> 21 | G12: =F12 -> 21 | H12: =G12+0.5 -> 21.5 | I12: =H12 -> 21.5
A13: Részmérettáblázat
B14: XS | C14: S | D14: M | E14: L | F14: XL | G14: XXL | H14: 3XL | I14: 4XL
A15: rollni kész szélessége | B15: 1 | C15: 1 | D15: 1 | E15: 1 | F15: 1 | G15: 1 | H15: 1 | I15: 1
A16: zsebszél behajtás szélessége | B16: =C16 -> 1+2,5 | C16: 1+2,5 | D16: 1+2,5 | E16: 1+2,5 | F16: 1+2,5 | G16: 1+2,5 | H16: 1+2,5 | I16: 1+2,5
A17: alja felhajtás szélessége | B17: 1+1,5 | C17: 1+1,5 | D17: 1+1,5 | E17: 1+1,5 | F17: =E17 -> 1+1,5 | G17: =F17 -> 1+1,5 | H17: =G17 -> 1+1,5 | I17: =H17 -> 1+1,5

Sheet Nővér tunika
A1: Modell: | C1: Nővér tunika, V-nyakú, bevarrt ujjú
A2: Készmérettáblázat
B3: XS | C3: S | D3: M | E3: L | F3: XL | G3: XXL | H3: 3XL | I3: 4XL
A4: hossza hátközépen | B4: =C4-1 -> 76.1 | C4: =D4-1 -> 77.1 | D4: =E4-0.9 -> 78.1 | E4: 79 | F4: =E4+1.5 -> 80.5 | G4: =F4+1.25 -> 81.75 | H4: =G4+1.3 -> 83.05 | I4: =H4+1.25 -> 84.3
A5: mellkerület | B5: =C5-8 -> 97.7 | C5: =D5-8 -> 105.7 | D5: =E5-8 -> 113.7 | E5: 121.7 | F5: =E5+12 -> 133.7 | G5: =F5+11.5 -> 145.2 | H5: =G5+12 -> 157.2 | I5: =H5+12 -> 169.2
A6: derék kerület | B6: =C6-8 -> 90.7 | C6: 98.7 | D6: 106.7 | E6: 114.7 | F6: =E6+12 -> 126.7 | G6: 138.7 | H6: 150.7 | I6: 162.7
A7: alja kerület | B7: 106.8 | C7: 114.8 | D7: 122.8 | E7: 130.8 | F7: 142.8 | G7: 154.8 | H7: 166.8 | I7: 178.8
A8: vállszélesség | B8: =C8-0.7 -> 12.9 | C8: =D8-0.7 -> 13.6 | D8: =E8-0.7 -> 14.3 | E8: 15 | F8: =E8+1.1 -> 16.1 | G8: =F8+1 -> 17.1 | H8: =G8+1.1 -> 18.2 | I8: =H8+1.1 -> 19.3
A9: ujja hossza | B9: =C9-0.8 -> 23.4 | C9: =D9-0.8 -> 24.2 | D9: =E9-0.8 -> 25 | E9: 25.8 | F9: =E9+1.2 -> 27 | G9: =F9+1.2 -> 28.2 | H9: =G9+1.2 -> 29.4 | I9: =H9+1.2 -> 30.6
A10: ujja alja kerület | B10: =C10-2 -> 33.3 | C10: =D10-2 -> 35.3 | D10: =E10-2 -> 37.3 | E10: 39.3 | F10: =E10+3 -> 42.3 | G10: =F10+3 -> 45.3 | H10: =G10+3 -> 48.3 | I10: =H10+3 -> 51.3
A11: felső zseb szélessége | B11: =C11-0.5 -> 11 | C11: 11.5 | D11: =E11 -> 12 | E11: 12 | F11: =E11+0.5 -> 12.5 | G11: =F11 -> 12.5 | H11: =G11+0.5 -> 13 | I11: =H11 -> 13
A12: felső zseb hossza | B12: 12 | C12: 12.5 | D12: =E12 -> 13 | E12: 13 | F12: =E12+0.5 -> 13.5 | G12: =F12 -> 13.5 | H12: =G12+0.5 -> 14 | I12: =H12 -> 14
A13: alsó zseb szélessége | B13: 16.5 | C13: 17 | D13: =E13-0.5 -> 17.5 | E13: 18 | F13: =E13+0.5 -> 18.5 | G13: =F13 -> 18.5 | H13: =G13+0.5 -> 19 | I13: =H13 -> 19
A14: alsó zseb hossza | B14: =C14 -> 19.5 | C14: =D14-0.5 -> 19.5 | D14: =E14 -> 20 | E14: 20 | F14: =E14+0.5 -> 20.5 | G14: =F14 -> 20.5 | H14: =G14 -> 20.5 | I14: =H14 -> 20.5
A15: Részmérettáblázat
B16: XS | C16: S | D16: M | E16: L | F16: XL | G16: XXL | H16: 3XL | I16: 4XL
A17: zsebszél behajtás szélessége | B17: =C17 -> 1+2,5 | C17: =D17 -> 1+2,5 | D17: =E17 -> 1+2,5 | E17: 1+2,5 | F17: 1+2,5 | G17: 1+2,5 | H17: 1+2,5 | I17: 1+2,5
A18: ujja alja felhajtás szélessége | B18: =C18 -> 1+1,5 | C18: 1+1,5 | D18: 1+1,5 | E18: 1+1,5 | F18: =E18 -> 1+1,5 | G18: 1+1,5 | H18: 1+1,5 | I18: 1+1,5
A19: alja felhajtás szélessége | B19: 1+1,5 | C19: 1+1,5 | D19: 1+1,5 | E19: 1+1,5 | F19: 1+1,5 | G19: 1+1,5 | H19: 1+1,5 | I19: 1+1,5

Sheet Nővér nadrág
A1: Modell: | C1: Nővér nadrág, körbe gumis
A2: Készmérettáblázat
B3: XS | C3: S | D3: M | E3: L | F3: XL | G3: XXL | H3: 3XL | I3: 4XL
A4: derék kerület | B4: 60 | C4: 63 | D4: 66 | E4: 73 | F4: 80 | G4: 85 | H4: 90 | I4: 95
A5: csípő kerület | B5: =C5-8.5 -> 91 | C5: =D5-8 -> 99.5 | D5: =E5-8 -> 107.5 | E5: 115.5 | F5: =E5+12 -> 127.5 | G5: =F5+12 -> 139.5 | H5: =G5+12 -> 151.5 | I5: =H5+12 -> 163.5
A6: alja kerület | B6: =C6-2.4 -> 40.2 | C6: =D6-2.4 -> 42.6 | D6: =E6-2.4 -> 45 | E6: 47.4 | F6: =E6+3.6 -> 51 | G6: =F6+3.6 -> 54.6 | H6: =G6+3.6 -> 58.2 | I6: =H6+3.6 -> 61.8
A7: külső hossz | B7: =C7-1 -> 102 | C7: =D7-1 -> 103 | D7: =E7-1 -> 104 | E7: 105 | F7: =E7+1.6 -> 106.6 | G7: =F7+1.6 -> 108.2 | H7: =G7+1.6 -> 109.8 | I7: =H7+1.6 -> 111.4
A8: belső hossz | B8: =C8 -> 80.2 | C8: =D8 -> 80.2 | D8: =E8 -> 80.2 | E8: 80.2 | F8: =E8+0.1 -> 80.3 | G8: =F8+0.1 -> 80.4 | H8: =G8+0.1 -> 80.5 | I8: =H8+0.1 -> 80.6
A9: eleje ülep hossz | B9: =C9-1.2 -> 23.7 | C9: =D9-1.2 -> 24.9 | D9: =E9-1.2 -> 26.1 | E9: 27.3 | F9: =E9+1.8 -> 29.1 | G9: =F9+1.8 -> 30.9 | H9: =G9+1.8 -> 32.7 | I9: =H9+1.8 -> 34.5
A10: háta ülep hossz | B10: =C10-2.2 -> 31 | C10: =D10-2.2 -> 33.2 | D10: =E10-2.3 -> 35.4 | E10: 37.7 | F10: =E10+3.3 -> 41 | G10: =F10+3.4 -> 44.4 | H10: =G10+3.4 -> 47.8 | I10: =H10+3.4 -> 51.2
A11: zseb szélessége | B11: 14.8 | C11: 15.1 | D11: 15.5 | E11: 15.8 | F11: 16.8 | G11: 17.7 | H11: 18.6 | I11: 19.5
A12: zseb hossza | B12: 26.5 | C12: 27.4 | D12: 28.4 | E12: 28.9 | F12: 29.4 | G12: 29.8 | H12: 30.3 | I12: 30.7
A13: Részmérettáblázat
B14: XS | C14: S | D14: M | E14: L | F14: XL | G14: XXL | H14: 3XL | I14: 4XL
A15: alja felhajtás szélessége | B15: 1+1,5 | C15: =B15 -> 1+1,5 | D15: =C15 -> 1+1,5 | E15: 1+1,5 | F15: 1+1,5 | G15: 1+1,5 | H15: 1+1,5 | I15: 1+1,5
A16: rollni szélessége | B16: 1 | C16: =B16 -> 1 | D16: 1 | E16: 1 | F16: 1 | G16: 1 | H16: 1 | I16: 1

Sheet Pizsama gyermek
A1: Modell: | D1: Pizsama kabát, gyermek
A2: Készmérettáblázat
B3: 104 | C3: =B3+6 -> 110 | D3: =C3+6 -> 116 | E3: 122 | F3: 128 | G3: 134 | H3: 140 | I3: 146 | J3: =I3+6 -> 152 | K3: 158
A4: hossza hátközépen | B4: =C4-2.4 -> 40.7 | C4: =D4-2.5 -> 43.1 | D4: =E4-2.4 -> 45.6 | E4: =F4-2.5 -> 48 | F4: =G4-2.4 -> 50.5 | G4: =H4-2.5 -> 52.9 | H4: 55.4 | I4: =H4+2.4 -> 57.8 | J4: =I4+2.5 -> 60.3 | K4: =J4+2.4 -> 62.7
A5: mellkerület | B5: =C5-2 -> 76 | C5: 78 | D5: 80 | E5: 82 | F5: 84 | G5: =H5-2 -> 86 | H5: 88 | I5: =H5+4 -> 92 | J5: 96 | K5: 100
A6: alja kerület | B6: 76 | C6: 78 | D6: 80 | E6: 82 | F6: 84 | G6: =H6-2 -> 86 | H6: 88 | I6: 92 | J6: 96 | K6: 100
A7: vállszélesség | B7: =C7-0.2 -> 10.05 | C7: =D7-0.1 -> 10.25 | D7: =E7-0.4 -> 10.35 | E7: =F7-0.3 -> 10.75 | F7: =G7-0.3 -> 11.05 | G7: =H7-0.45 -> 11.35 | H7: 11.8 | I7: =H7+0.4 -> 12.2 | J7: =I7+0.5 -> 12.7 | K7: =J7+0.4 -> 13.1
A8: ujja hossza | B8: =C8-2 -> 37 | C8: =D8-1.9 -> 39 | D8: =E8-2.1 -> 40.9 | E8: =F8-2 -> 43 | F8: =G8-1.9 -> 45 | G8: =H8-2.1 -> 46.9 | H8: 49 | I8: =H8+1.9 -> 50.9 | J8: =I8+2 -> 52.9 | K8: =J8+2 -> 54.9
A9: ujja felkarkerület | B9: =C9-0.9 -> 31.5 | C9: =D9-0.8 -> 32.4 | D9: =E9-0.8 -> 33.2 | E9: =F9-0.9 -> 34 | F9: =G9-0.8 -> 34.9 | G9: =H9-0.8 -> 35.7 | H9: 36.5 | I9: =H9+0.9 -> 37.4 | J9: =I9+0.9 -> 38.3 | K9: =J9+1 -> 39.3
A10: ujja alja kerület | B10: =C10-0.6 -> 21 | C10: 21.6 | D10: 22.2 | E10: 22.8 | F10: 23.4 | G10: 24 | H10: 24.6 | I10: =H10+0.6 -> 25.2 | J10: =I10+0.6 -> 25.8 | K10: =J10+0.6 -> 26.4
A11: nyakkör kerület | B11: =C11-0.6 -> 38.2 | C11: =D11-0.5 -> 38.8 | D11: =E11-0.6 -> 39.3 | E11: =F11-0.6 -> 39.9 | F11: =G11-0.6 -> 40.5 | G11: =H11-0.5 -> 41.1 | H11: 41.6 | I11: =H11+0.6 -> 42.2 | J11: =I11+0.6 -> 42.8 | K11: =J11+0.5 -> 43.3
A12: Részmérettáblázat
B13: 104 | C13: =B13+6 -> 110 | D13: =C13+6 -> 116 | E13: 122 | F13: 128 | G13: 134 | H13: 140 | I13: 146 | J13: =I13+6 -> 152 | K13: 158
A14: eleje behajtás szélessége | B14: =C14 -> 3+3 | C14: 3+3 | D14: 3+3 | E14: 3+3 | F14: 3+3 | G14: 3+3 | H14: 3+3 | I14: =H14 -> 3+3 | J14: 3+3 | K14: 3+3
A15: ujja alja felhajtás szélessége | B15: 1+1,5 | C15: 1+1,5 | D15: 1+1,5 | E15: 1+1,5 | F15: 1+1,5 | G15: 1+1,5 | H15: 1+1,5 | I15: 1+1,5 | J15: 1+1,5 | K15: 1+1,5
A16: alja felhajtás szélessége | B16: 1+1,5 | C16: 1+1,5 | D16: 1+1,5 | E16: 1+1,5 | F16: 1+1,5 | G16: 1+1,5 | H16: 1+1,5 | I16: 1+1,5 | J16: 1+1,5 | K16: 1+1,5
A31: Modell: | D31: Pizsama nadrág, gyerek
A32: Készmérettáblázat
B33: 104 | C33: =B33+6 -> 110 | D33: =C33+6 -> 116 | E33: 122 | F33: 128 | G33: 134 | H33: 140 | I33: 146 | J33: =I33+6 -> 152 | K33: =J33+6 -> 158
A34: derék kerület, kihúzott állapotban | B34: =C34-2 -> 68.5 | C34: 70.5 | D34: 72.5 | E34: 74.5 | F34: 76.5 | G34: =H34-2 -> 78.5 | H34: 80.5 | I34: =H34+4 -> 84.5 | J34: 88.5 | K34: 92.5
A35: csípő kerület | B35: =C35-2.1 -> 75.9 | C35: =D35-2.1 -> 78 | D35: 80.1 | E35: 82.1 | F35: 84.1 | G35: =H35-2.2 -> 86.1 | H35: 88.3 | I35: 92.3 | J35: 96.3 | K35: 100.3
A36: alja kerület | B36: =C36-1.2 -> 31.4 | C36: =D36-1.2 -> 32.6 | D36: =E36-1.2 -> 33.8 | E36: =F36-1.2 -> 35 | F36: =G36-1.2 -> 36.2 | G36: =H36-1.6 -> 37.4 | H36: 39 | I36: =H36+1.6 -> 40.6 | J36: =I36+1.6 -> 42.2 | K36: =J36+1.6 -> 43.8
A37: külső hossz | B37: =C37-4.5 -> 60.2 | C37: 64.7 | D37: 69.2 | E37: 73.7 | F37: 78.2 | G37: 82.7 | H37: 87.2 | I37: =H37+4.3 -> 91.5 | J37: =I37+4.2 -> 95.7 | K37: =J37+4.3 -> 100
A38: belső hossz | B38: =C38-4 -> 39.7 | C38: =D38-3.9 -> 43.7 | D38: =E38-4 -> 47.6 | E38: =F38-4 -> 51.6 | F38: =G38-4 -> 55.6 | G38: =H38-4 -> 59.6 | H38: 63.6 | I38: =H38+3.5 -> 67.1 | J38: =I38+3.5 -> 70.6 | K38: =J38+3.5 -> 74.1
A39: eleje ülep hossz | B39: =C39-0.5 -> 21.1 | C39: =D39-0.6 -> 21.6 | D39: =E39-0.5 -> 22.2 | E39: =F39-0.5 -> 22.7 | F39: =G39-0.6 -> 23.2 | G39: =H39-0.5 -> 23.8 | H39: 24.3 | I39: =H39+0.9 -> 25.2 | J39: =I39+0.8 -> 26 | K39: =J39+0.8 -> 26.8
A40: háta ülep hossz | B40: =C40-0.7 -> 29.6 | C40: 30.3 | D40: 31 | E40: 31.7 | F40: 32.4 | G40: 33.1 | H40: 33.8 | I40: =H40+0.9 -> 34.7 | J40: =I40+0.8 -> 35.5 | K40: =J40+0.9 -> 36.4
A41: Részmérettáblázat
B42: 104 | C42: =B42+6 -> 110 | D42: =C42+6 -> 116 | E42: 122 | F42: 128 | G42: 134 | H42: 140 | I42: 146 | J42: =I42+6 -> 152 | K42: =J42+6 -> 158
A43: alja felhajtás szélessége | B43: =C43 -> 1+1,5 | C43: 1+1,5 | D43: 1+1,5 | E43: 1+1,5 | F43: 1+1,5 | G43: 1+1,5 | H43: 1+1,5 | I43: =H43 -> 1+1,5 | J43: =I43 -> 1+1,5 | K43: =J43 -> 1+1,5
